bitfinex/quotes_SOLUSD_20240603
["timestamp","ask_amount","ask_price","bid_price","bid_amount"]
[1717395496037,2.2463,164.71,164.68,6.6031]
[1717395496558,2.2463,164.71,164.68,23.1044]
[1717395496777,2.2462,164.72,164.68,23.1044]
[1717395497062,2.2462,164.72,164.69,45.34]
[1717395498437,8.9826,164.77,164.69,60.8027]
[1717395498628,2.2457,164.76,164.71,2.2463]
[1717395498843,2.2457,164.76,164.72,22.0283]
[1717395499028,2.2458,164.75,164.72,6.5656]
[1717395499449,2.2458,164.75,164.73,45.0]
[1717395499636,2.2458,164.75,164.74,0.34]
[1717395502739,2.2457,164.76,164.74,6.4777]
[1717395502939,2.2455,164.77,164.75,45.0]
[1717395503142,2.2455,164.77,164.76,0.17]
[1717395505143,2.2458,164.76,164.75,0.17]
[1717395505773,2.2452,164.8,164.75,2.4158]
[1717395506079,2.2451,164.8,164.76,0.17]
[1717395506246,2.2451,164.8,164.77,22.772]
[1717395506445,2.2451,164.8,164.78,0.34]
[1717395507064,2.2451,164.8,164.78,45.34]
[1717395507247,2.2451,164.8,164.78,51.6007]
[1717395508866,2.2448,164.82,164.79,6.5154]
[1717395509079,2.2448,164.82,164.8,0.34]
[1717395509254,2.2448,164.82,164.8,1.62749971]
[1717395509874,2.245,164.81,164.8,0.34]
[1717395510078,2.245,164.81,164.8,45.34]
[1717395510262,2.2449,164.82,164.8,45.34]
[1717395510451,2.2449,164.82,164.8,51.9835]
[1717395512377,2.2449,164.82,164.8,45.17]
[1717395512566,2.2453,164.79,164.75,6.6205]
[1717395512762,60.0,164.97,164.75,6.6205]
[1717395513080,2.2455,164.77,164.75,6.6205]
[1717395513985,11.2248,164.82,164.75,6.6205]
[1717395514189,2.2454,164.78,164.76,45.34]
[1717395514591,2.2453,164.79,164.76,51.405]
[1717395514876,2.2453,164.79,164.76,67.9119]
[1717395515278,4.4892,164.84,164.78,6.2073]
[1717395515463,4.4892,164.84,164.8,6.2073]
[1717395515975,2.2449,164.82,164.8,6.2073]
[1717395516675,2.245,164.81,164.8,6.2073]
[1717395516860,2.245,164.81,164.8,6.5473]
[1717395517462,2.245,164.81,164.8,0.34]
[1717395521863,2.245,164.81,164.8,0.17]
[1717395522787,2.245,164.81,164.76,51.1931]
[1717395522788,4.7766949,164.9,164.76,6.1931]
[1717395522988,15.7103,164.92,164.76,6.1931]
[1717395522989,2.2454,164.78,164.76,6.1931]
[1717395523682,2.2452,164.79,164.76,6.1931]
[1717395524075,2.2452,164.79,164.77,45.34]
[1717395525790,2.2452,164.79,164.77,51.523]
[1717395530094,2.2451,164.8,164.77,51.523]
[1717395530289,2.2451,164.8,164.78,6.3713]
[1717395530510,2.2451,164.8,164.79,0.34]
[1717395531483,2.2451,164.8,164.78,22.5924]
[1717395531685,2.2452,164.79,164.78,0.34]
[1717395531875,2.2452,164.79,164.78,0.17]
[1717395532368,2.2452,164.79,164.78,0.34]
[1717395537184,2.2452,164.8,164.78,0.34]
[1717395537587,2.2452,164.8,164.78,0.17]
[1717395537799,2.2453,164.79,164.74,24.4983]
[1717395537985,2.2453,164.79,164.75,51.5419]
[1717395539193,2.2453,164.79,164.76,6.2194]
[1717395539496,2.2453,164.79,164.77,0.34]
[1717395539874,2.2453,164.79,164.77,45.34]
[1717395540299,2.2451,164.8,164.77,45.34]
[1717395540486,2.2451,164.8,164.77,6.3902]
[1717395541582,2.2453,164.79,164.77,6.3902]
[1717395541990,2.2452,164.8,164.77,6.3902]
[1717395543909,2.2454,164.78,164.77,0.34]
[1717395545290,2.2458,164.75,164.71,9.10454401]
[1717395545487,2.2458,164.75,164.71,6.2582]
[1717395545692,4.4907,164.79,164.71,6.2582]
[1717395545693,4.4908,164.78,164.71,6.2582]
[1717395546013,2.2457,164.76,164.71,6.2582]
[1717395546186,2.246,164.74,164.7,17.36584584]
[1717395546585,2.2461,164.73,164.7,17.36584584]
[1717395546799,2.246,164.74,164.7,17.36584584]
[1717395547225,2.246,164.74,164.71,45.34]
[1717395547384,2.2458,164.75,164.71,45.17]
[1717395547588,2.2457,164.76,164.71,47.4163]
[1717395547789,2.2457,164.76,164.72,6.0063]
[1717395548011,2.2457,164.76,164.73,0.17]
[1717395548313,2.2458,164.75,164.73,0.17]
[1717395548716,2.2459,164.74,164.73,0.34]
[1717395548893,2.2459,164.74,164.72,0.34]
[1717395551606,2.2461,164.73,164.68,8.6225]
[1717395552125,2.2461,164.73,164.69,6.6298]
[1717395553018,2.2461,164.73,164.7,45.34]
[1717395553327,8.9815,164.79,164.7,0.34]
[1717395553514,4.84020203,164.87,164.67,1.05603271]
[1717395553696,2.2463,164.72,164.68,0.34]
[1717395555921,2.2463,164.72,164.68,6.3655]
[1717395556225,2.2463,164.72,164.69,45.0]
[1717395556715,4.4917,164.75,164.64,1.05629794]
[1717395558104,2.2463,164.72,164.66,2.2469]
[1717395558304,2.2463,164.72,164.67,0.34]
[1717395558512,2.2463,164.71,164.67,0.34]
[1717395558818,2.2465,164.7,164.67,0.17]
[1717395559007,2.2465,164.7,164.66,0.34]
[1717395559518,8.9837,164.75,164.66,0.17]
[1717395559814,2.2467,164.68,164.65,0.17]
[1717395560194,2.2466,164.69,164.65,0.17]
[1717395560414,2.2466,164.69,164.65,6.5454]
[1717395560916,2.2466,164.69,164.66,45.17]
[1717395561615,2.2467,164.68,164.66,45.17]
[1717395562714,2.2466,164.69,164.66,45.17]
[1717395563997,2.2466,164.69,164.66,51.6947]
[1717395565214,2.2468,164.68,164.66,45.17]
[1717395565724,2.247,164.67,164.65,0.17]
[1717395567623,49.05633781,164.82,164.62,7.27065329]
[1717395567827,49.05633781,164.82,164.59,15.4374]
[1717395567828,304.27,164.81,164.59,15.4374]
[1717395568026,2.2474,164.64,164.6,6.4432]
[1717395568405,2.2474,164.64,164.6,8.691]
[1717395568602,2.2474,164.64,164.6,24.193]
[1717395569148,2.2474,164.64,164.61,45.34]
[1717395569429,2.2472,164.65,164.61,53.8021]
[1717395569604,2.2472,164.65,164.62,6.2144]
[1717395569803,2.2472,164.65,164.63,45.17]
[1717395570003,2.247,164.66,164.63,45.17]
[1717395570301,2.2458,164.76,164.67,60.0]
[1717395570533,4.4901,164.81,164.69,2.2465]
[1717395570534,4.4903,164.8,164.69,2.2465]
[1717395570828,2.2457,164.76,164.7,2.5865]
[1717395571038,2.2455,164.78,164.7,0.34]
[1717395571208,6.7343,164.83,164.7,0.34]
[1717395571209,4.4895,164.83,164.73,2.246]
[1717395571405,2.2452,164.8,164.74,0.34]
[1717395571605,2.2452,164.8,164.74,32.5859]
[1717395571870,2.2452,164.8,164.75,45.0]
[1717395572132,2.2452,164.8,164.76,0.17]
[1717395572431,2.2453,164.79,164.76,0.34]
[1717395572616,2.2453,164.79,164.76,36.985]
[1717395572811,15.7116,164.85,164.77,45.0]
[1717395572812,2.2451,164.81,164.77,45.0]
[1717395573123,15.7116,164.85,164.77,45.0]
[1717395573124,2.2451,164.8,164.77,45.0]
[1717395573324,2.2452,164.79,164.77,45.0]
[1717395573511,2.2451,164.8,164.77,45.0]
[1717395573714,2.2451,164.8,164.78,0.34]
[1717395574710,2.2451,164.8,164.78,30.34]
[1717395575726,2.245,164.81,164.79,45.0]
[1717395576002,2.245,164.81,164.79,75.0]
[1717395578319,2.2451,164.8,164.79,75.0]
[1717395578642,2.2451,164.8,164.79,30.17]
[1717395578841,2.2451,164.8,164.79,30.0]
[1717395579930,2.2452,164.79,164.78,0.34]
[1717395580333,2.2452,164.79,164.78,0.17]
[1717395580846,2.2452,164.79,164.78,30.17]
[1717395581041,2.2454,164.78,164.74,6.1218]
[1717395581654,2.2455,164.77,164.73,15.9752]
[1717395581934,2.2455,164.77,164.74,30.0]
[1717395583039,2.2455,164.77,164.7,6.4614]
[1717395583040,2.2456,164.76,164.75,45.17]
[1717395583336,2.2458,164.75,164.73,30.0]
[1717395584246,2.2458,164.75,164.71,23.7068]
[1717395584539,2.2457,164.76,164.72,45.0]
[1717395584741,2.2457,164.76,164.73,0.34]
[1717395585548,2.2455,164.77,164.73,6.4187]
[1717395585729,2.2455,164.77,164.74,45.0]
[1717395585931,2.2455,164.77,164.75,0.17]
[1717395586136,2.2454,164.78,164.75,0.17]
[1717395586338,2.2456,164.77,164.75,0.34]
[1717395586729,8.9803,164.81,164.75,0.34]
[1717395586730,2.2454,164.78,164.75,0.34]
[1717395587045,2.2453,164.79,164.75,6.6433]
[1717395587233,2.2453,164.79,164.76,45.0]
[1717395587542,2.2453,164.79,164.77,0.17]
[1717395587744,2.2454,164.78,164.77,0.17]
[1717395588437,2.2453,164.79,164.77,0.17]
[1717395588750,2.2451,164.8,164.77,0.34]
[1717395590347,2.2451,164.8,164.77,6.5827]
[1717395590645,2.2451,164.8,164.78,45.0]
[1717395590845,2.2451,164.8,164.79,0.34]
[1717395591622,6.7347,164.82,164.73,22.6004]
[1717395591849,2.2455,164.78,164.74,30.0]
[1717395592045,2.2455,164.78,164.75,6.2882]
[1717395592750,2.2455,164.78,164.76,30.0]
[1717395592941,2.2455,164.78,164.77,0.17]
[1717395593152,2.2455,164.78,164.76,45.34]
[1717395593529,2.2453,164.79,164.76,45.34]
[1717395594035,2.2454,164.78,164.76,45.34]
[1717395595343,13.4688,164.83,164.76,45.34]
[1717395595945,2.2452,164.79,164.76,45.34]
[1717395596948,2.2451,164.8,164.77,22.5701]
[1717395597246,2.245,164.81,164.78,45.34]
[1717395597633,4.4895,164.83,164.78,45.34]
[1717395598752,2.2451,164.8,164.78,45.34]
[1717395599561,2.2448,164.83,164.8,6.5123]
[1717395599844,2.2445,164.85,164.81,51.8523]
[1717395600433,2.2447,164.83,164.81,45.34]
[1717395600627,2.2448,164.83,164.82,45.0]
[1717395600823,2.2448,164.83,164.82,0.17]
[1717395601438,2.2448,164.82,164.81,0.34]
[1717395602351,2.245,164.81,164.8,45.0]
[1717395602534,2.245,164.81,164.79,45.0]
[1717395602737,2.2449,164.82,164.8,0.17]
[1717395605356,2.2447,164.83,164.8,0.34]
[1717395606049,2.2447,164.83,164.8,6.9961]
[1717395606245,2.2447,164.83,164.81,45.0]
[1717395606552,2.2446,164.84,164.82,0.34]
[1717395607654,2.2448,164.82,164.81,45.0]
[1717395607964,2.2448,164.82,164.81,45.17]
[1717395609342,2.2448,164.82,164.81,0.17]
[1717395609657,2.2448,164.82,164.78,36.3123]
[1717395609959,2.2447,164.83,164.79,51.6523]
[1717395611961,2.2448,164.82,164.79,51.6523]
[1717395614457,2.2447,164.83,164.79,51.6523]
[1717395614955,2.2449,164.82,164.79,51.6523]
[1717395615355,2.2447,164.83,164.79,51.6523]
[1717395615761,2.2447,164.83,164.79,53.8975]
[1717395615970,13.4655,164.87,164.8,6.2225]
[1717395615971,2.2446,164.84,164.8,6.2225]
[1717395616143,24.93248788,164.9,164.81,53.8074]
[1717395616468,2.2444,164.86,164.82,0.17]
[1717395616760,2.2444,164.86,164.82,45.17]
[1717395616960,2.2444,164.86,164.83,0.17]
[1717395617274,2.2444,164.85,164.83,0.17]
[1717395618545,4.4878,164.89,164.83,0.17]
[1717395618865,2.2443,164.86,164.83,6.2466]
[1717395619070,2.2443,164.86,164.84,45.17]
[1717395619379,2.2445,164.85,164.79,8.3217]
[1717395619664,2.2445,164.85,164.8,83.781]
[1717395621555,2.2445,164.85,164.81,24.3594]
[1717395621756,2.2445,164.85,164.82,45.34]
[1717395625580,2.2443,164.86,164.82,45.34]
[1717395626551,2.2445,164.85,164.82,45.34]
[1717395626857,9.69522325,164.94,164.8,30.0]
[1717395627050,2.2452,164.8,164.75,11.33670415]
[1717395627254,45.34,164.93,164.76,30.0]
[1717395627255,2.2454,164.78,164.76,30.0]
[1717395627467,2.2456,164.77,164.73,23.6168]
[1717395627673,2.2453,164.79,164.73,23.6168]
[1717395627844,2.2453,164.79,164.73,21.3708]
[1717395628047,2.2453,164.79,164.74,2.2459]
[1717395628254,2.2454,164.78,164.74,8.5707]
[1717395628547,2.2454,164.78,164.74,6.3248]
[1717395629051,2.2455,164.77,164.72,2.2461]
[1717395629258,2.2455,164.77,164.73,0.17]
[1717395630552,2.2455,164.77,164.73,0.34]
[1717395632275,2.2454,164.78,164.74,2.2459]
[1717395632464,2.2454,164.78,164.75,0.34]
[1717395633075,2.2454,164.78,164.74,0.34]
[1717395633560,2.2453,164.79,164.74,2.5859]
[1717395635758,2.2453,164.79,164.74,9.0426]
[1717395635959,2.2453,164.79,164.75,45.0]
[1717395636159,2.2453,164.79,164.76,0.34]
[1717395637070,6.7333,164.86,164.77,6.4974]
[1717395637375,2.2449,164.82,164.78,45.34]
[1717395637553,2.2449,164.82,164.78,0.34]
[1717395641492,6.7333,164.86,164.78,6.3506]
[1717395641673,6.7333,164.86,164.79,45.0]
[1717395641869,2.2446,164.84,164.8,0.34]
[1717395642169,2.2447,164.83,164.8,0.34]
[1717395642777,2.2448,164.82,164.8,0.34]
[1717395646489,2.2447,164.83,164.8,0.34]
[1717395646786,2.2449,164.82,164.8,0.34]
[1717395648975,2.2447,164.83,164.8,0.34]
[1717395649594,2.2448,164.82,164.8,0.34]
[1717395651290,2.2447,164.83,164.8,0.34]
[1717395652588,2.2447,164.83,164.8,0.17]
[1717395654376,2.2449,164.82,164.8,0.17]
[1717395656801,2.2449,164.82,164.79,45.0]
[1717395656972,2.2449,164.82,164.78,45.17]
[1717395660987,2.36422732,164.83,164.8,6.0517]
[1717395661179,2.36422732,164.83,164.81,45.34]
[1717395661698,2.36422732,164.83,164.81,45.17]
[1717395664781,0.11952732,164.83,164.81,45.17]
[1717395665192,2.36422732,164.83,164.81,45.17]
[1717395666180,0.11952732,164.83,164.81,45.17]
[1717395666380,0.11952732,164.83,164.82,0.17]
[1717395666593,0.11952732,164.83,164.82,2.4148]
[1717395666794,0.11952732,164.83,164.82,2.5848]
[1717395667002,0.11952732,164.83,164.82,9.1087]
[1717395667307,0.11952732,164.83,164.82,54.1087]
[1717395667492,0.11952732,164.83,164.82,51.8639]
[1717395670010,2.2443,164.86,164.82,51.8639]
[1717395670219,2.2443,164.86,164.83,45.17]
[1717395670523,2.2444,164.85,164.83,45.17]
[1717395671094,2.2446,164.84,164.83,45.17]
[1717395671502,2.2444,164.85,164.83,45.17]
[1717395672706,2.2446,164.84,164.79,6.3971]
[1717395672912,2.2446,164.84,164.8,0.34]
[1717395673615,2.2447,164.83,164.8,0.34]
[1717395673922,2.2448,164.83,164.8,0.34]
[1717395674101,2.2448,164.83,164.8,45.34]
[1717395676798,2.2448,164.83,164.8,45.17]
[1717395677892,11.2212,164.87,164.8,45.17]
[1717395677893,2.245,164.81,164.8,45.17]
[1717395679095,2.245,164.81,164.8,45.0]
[1717395679392,2.245,164.81,164.8,45.17]
[1717395680203,2.245,164.81,164.76,2.2456]
[1717395680730,2.2451,164.8,164.77,0.34]
[1717395680927,2.2451,164.8,164.77,0.17]
[1717395681823,2.2451,164.8,164.75,2.2457]
[1717395682013,4.4893,164.84,164.74,8.7375]
[1717395682014,2.2453,164.79,164.74,8.7375]
[1717395682196,2.2454,164.78,164.73,2.246]
[1717395682599,2.2454,164.78,164.72,9.10470049]
[1717395682600,2.2455,164.77,164.72,11.35090049]
[1717395682800,2.2455,164.77,164.72,2.2462]
[1717395683121,2.2455,164.77,164.72,8.7817]
[1717395683419,2.2455,164.77,164.72,21.7977]
[1717395683602,2.2455,164.77,164.73,8.4749]
[1717395684307,2.2454,164.78,164.74,45.34]
[1717395685427,2.2455,164.77,164.74,45.34]
[1717395685607,2.2455,164.77,164.74,45.17]
[1717395686103,6.27282704,164.88,164.74,45.17]
[1717395686304,45.34,164.87,164.74,0.17]
[1717395686520,2.2457,164.76,164.74,0.17]
[1717395686829,2.2458,164.75,164.72,1.05581321]
[1717395687128,2.2457,164.76,164.72,1.05581321]
[1717395687708,4.4906,164.79,164.71,2.2463]
[1717395687709,2.2458,164.75,164.71,2.2463]
[1717395687909,2.2459,164.74,164.7,2.2464]
[1717395688114,2.2459,164.74,164.7,8.2491]
[1717395688612,2.2463,164.72,164.7,6.0027]
[1717395688833,2.2461,164.73,164.7,6.0027]
[1717395689115,2.2461,164.73,164.71,45.17]
[1717395689334,2.246,164.74,164.71,45.17]
[1717395691606,2.246,164.74,164.71,0.17]
[1717395691810,2.2461,164.73,164.7,0.17]
[1717395693210,2.246,164.74,164.7,0.17]
[1717395695235,2.246,164.74,164.7,6.315]
[1717395696741,2.246,164.74,164.7,0.17]
[1717395698617,2.2458,164.75,164.7,9.1362]
[1717395698928,2.2458,164.75,164.71,45.0]
[1717395699225,2.2458,164.75,164.72,0.34]
[1717395700829,2.2458,164.75,164.72,0.22047268]
[1717395701313,2.2458,164.75,164.72,0.17]
[1717395702031,2.2458,164.75,164.72,6.3253]
[1717395702233,2.2458,164.75,164.73,45.0]
[1717395702605,2.2459,164.74,164.73,45.0]
[1717395703221,2.2459,164.74,164.73,45.17]
[1717395705526,13.4714,164.8,164.73,51.754]
[1717395705729,4.4903,164.8,164.74,22.5404]
[1717395705931,4.4903,164.8,164.75,45.0]
[1717395706239,2.2455,164.77,164.76,0.34]
[1717395706823,2.2456,164.76,164.75,45.0]
[1717395707325,2.2456,164.77,164.75,45.17]
[1717395707629,13.4703,164.81,164.76,0.17]
[1717395707836,2.2455,164.77,164.75,45.17]
[1717395708029,2.2455,164.77,164.76,45.0]
[1717395708231,2.2456,164.76,164.75,0.17]
[1717395709843,2.2455,164.77,164.75,0.17]
[1717395711641,2.2455,164.77,164.74,45.17]
[1717395712646,4.4903,164.8,164.73,6.2542]
[1717395712647,2.2457,164.76,164.73,6.2542]
[1717395714641,2.2457,164.76,164.72,0.17]
[1717395714834,2.2457,164.76,164.71,6.6524]
[1717395715044,2.2457,164.76,164.72,45.0]
[1717395715220,2.2459,164.75,164.73,0.17]
[1717395715718,2.2459,164.75,164.72,45.0]
[1717395716443,20.208,164.79,164.72,45.0]
[1717395716444,2.2459,164.74,164.72,45.0]
[1717395716740,2.2459,164.74,164.71,6.3124]
[1717395716966,2.2459,164.74,164.7,3.30212883]
[1717395717438,2.2459,164.74,164.7,9.31062883]
[1717395718145,2.2459,164.74,164.71,0.17]
[1717395718357,2.2459,164.74,164.71,45.17]
[1717395720349,2.2461,164.73,164.71,45.17]
[1717395720528,2.2459,164.74,164.71,45.17]
[1717395721436,2.2457,164.76,164.72,2.4161]
[1717395721749,2.2457,164.76,164.73,6.4577]
[1717395722042,2.2455,164.77,164.74,45.0]
[1717395722427,2.2455,164.77,164.75,0.17]
[1717395723147,2.2456,164.76,164.75,0.17]
[1717395724051,2.2456,164.76,164.74,45.0]
[1717395724052,60.0,164.96,164.74,45.0]
[1717395724229,2.2458,164.75,164.74,45.0]
[1717395724427,2.2458,164.75,164.74,45.17]
[1717395724846,2.2458,164.75,164.72,0.17]
[1717395725028,2.2458,164.75,164.71,45.34]
[1717395725230,2.2458,164.75,164.71,54.45174217]
[1717395725938,2.2458,164.75,164.71,60.74904217]
[1717395726132,2.2458,164.75,164.71,62.99534217]
[1717395726640,2.2458,164.75,164.71,60.74904217]
[1717395727353,2.2457,164.76,164.72,6.2497]
[1717395727646,2.2457,164.76,164.73,45.34]
[1717395727850,2.2458,164.75,164.73,45.34]
[1717395729828,2.2457,164.76,164.73,45.34]
[1717395731552,2.2458,164.75,164.73,45.34]
[1717395731738,2.2459,164.74,164.73,45.0]
[1717395731937,2.2459,164.74,164.72,45.0]
[1717395733058,2.2458,164.75,164.72,45.0]
[1717395736465,13.4714,164.8,164.72,45.0]
[1717395736757,2.2455,164.77,164.73,9.1561]
[1717395736939,2.2455,164.77,164.74,45.0]
[1717395737256,2.2455,164.77,164.75,0.34]
[1717395739247,4.4897,164.82,164.75,0.34]
[1717395739440,2.2455,164.78,164.75,0.34]
[1717395740941,2.2455,164.77,164.75,0.34]
[1717395741739,4.49,164.81,164.75,0.34]
[1717395741939,2.2454,164.78,164.75,0.34]
[1717395742260,2.2455,164.77,164.75,0.34]
[1717395743362,2.2454,164.78,164.75,0.34]
[1717395750559,13.4662,164.86,164.77,8.7493]
[1717395750746,2.245,164.81,164.78,45.34]
[1717395750947,259.1,164.92,164.78,45.34]
[1717395750948,2.2451,164.8,164.78,45.34]
[1717395752968,4.4893,164.84,164.75,6.3763]
[1717395752969,4.4895,164.83,164.75,6.3763]
[1717395753148,2.2453,164.79,164.76,45.34]
[1717395757776,2.2451,164.8,164.76,45.34]
[1717395766282,2.2451,164.8,164.76,47.5856]
[1717395769193,2.245,164.81,164.76,47.5856]
[1717395769511,2.2451,164.8,164.76,47.5856]
[1717395769797,2.245,164.81,164.76,53.7411]
[1717395771386,2.245,164.81,164.76,69.0235]
[1717395772100,2.245,164.81,164.77,6.0555]
[1717395772284,2.245,164.81,164.78,45.34]
[1717395774085,2.2449,164.82,164.78,51.8439]
[1717395774687,11.2225,164.85,164.78,51.8439]
[1717395774688,2.245,164.81,164.78,51.8439]
[1717395775704,2.2446,164.84,164.79,8.2611]
[1717395775993,2.2448,164.83,164.8,45.34]
[1717395777385,2.2448,164.83,164.8,67.7804]
[1717395781178,2.2446,164.84,164.81,6.516]
[1717395781400,2.2446,164.84,164.82,45.34]
[1717395782277,2.2445,164.85,164.82,51.5997]
[1717395782475,2.2445,164.85,164.82,60.3672]
[1717395782797,2.2443,164.86,164.83,6.3501]
[1717395782976,2.2443,164.86,164.84,45.34]
[1717395784526,4.4877,164.9,164.84,45.34]
[1717395784803,2.2444,164.86,164.84,45.34]
[1717395784995,2.2444,164.85,164.84,45.34]
[1717395785300,2.2444,164.85,164.84,45.17]
[1717395785498,2.2444,164.85,164.84,45.0]
[1717395785799,2.2443,164.86,164.84,45.0]
[1717395786890,2.2443,164.86,164.84,51.483]
[1717395787091,2.2441,164.87,164.84,60.979]
[1717395787400,2.2441,164.87,164.85,6.823]
[1717395787699,2.2441,164.87,164.86,45.0]
[1717395787904,9.22468788,164.93,164.86,45.0]
[1717395788107,2.2442,164.87,164.85,45.34]
[1717395788493,2.2443,164.86,164.85,45.17]
[1717395788698,2.2443,164.86,164.85,45.0]
[1717395791812,2.2442,164.87,164.85,45.0]
[1717395792114,2.244,164.89,164.86,6.7702]
[1717395792407,2.244,164.89,164.87,45.0]
[1717395793322,2.2436,164.91,164.88,0.34]
[1717395793489,2.2437,164.9,164.88,0.34]
[1717395793809,2.2439,164.89,164.88,0.17]
[1717395794005,2.2439,164.89,164.87,45.0]
[1717395794708,2.2438,164.9,164.87,51.267]
[1717395794895,4.4867,164.93,164.87,51.267]
[1717395794896,2.2436,164.91,164.88,6.607]
[1717395795088,2.2436,164.91,164.89,45.0]
[1717395795602,4.4865,164.94,164.89,45.0]
[1717395796207,2.2437,164.91,164.89,45.0]
[1717395796617,2.2437,164.9,164.89,45.0]
[1717395796790,2.2437,164.9,164.89,45.34]
[1717395797511,2.2437,164.91,164.89,45.34]
[1717395798595,2.2437,164.9,164.89,45.34]
[1717395799416,2.2436,164.91,164.89,51.8294]
[1717395799597,2.2436,164.91,164.9,0.34]
[1717395800916,2.2436,164.91,164.9,0.17]
[1717395801625,2.2437,164.9,164.89,45.0]
[1717395801801,2.2437,164.9,164.89,45.17]
[1717395804594,2.2437,164.9,164.89,45.34]
[1717395806605,8.9737,164.93,164.85,21.3612]
[1717395806907,4.4872,164.92,164.86,0.17]
[1717395807632,2.2438,164.9,164.86,0.17]
[1717395807833,2.2438,164.9,164.86,6.5778]
[1717395808029,9.50983383,164.98,164.88,6.4078]
[1717395808233,4.73798788,164.98,164.89,45.34]
[1717395808538,2.2435,164.92,164.89,51.7478]
[1717395813317,2.243,164.96,164.9,84.25392884]
[1717395813508,13.456,164.99,164.91,51.3521]
[1717395813708,6.7269,165.01,164.91,51.3521]
[1717395813709,11.46488788,165.01,164.92,0.30309207]
[1717395813930,4.4848,165.0,164.93,0.34]
[1717395814125,2.243,164.96,164.93,6.31]
[1717395814321,2.2431,164.95,164.94,45.34]
[1717395814714,2.243,164.96,164.94,45.34]
[1717395815934,2.2428,164.97,164.95,6.5635]
[1717395816118,2.2428,164.97,164.95,51.5635]
[1717395816455,2.2431,164.95,164.94,0.17]
[1717395816613,2.2431,164.95,164.92,22.7497]
[1717395816945,2.2431,164.95,164.93,51.9323]
[1717395817536,2.2429,164.96,164.93,51.9323]
[1717395817710,2.2429,164.96,164.93,67.2779]
[1717395819230,4.4851,164.99,164.93,51.9323]
[1717395819231,2.2431,164.95,164.93,51.9323]
[1717395820763,2.2431,164.95,164.93,45.34]
[1717395821341,2.243,164.96,164.94,7.416068]
[1717395821663,2.243,164.96,164.95,45.0]
[1717395823043,2.243,164.96,164.95,51.1137]
[1717395823357,15.697,165.0,164.95,51.1137]
[1717395823358,2.2428,164.97,164.95,51.2837]
[1717395823564,2.2428,164.97,164.95,51.1137]
[1717395823855,2.2429,164.96,164.95,51.1137]
[1717395824055,2.2429,164.96,164.95,51.2837]
[1717395825137,2.2429,164.96,164.95,45.17]
[1717395825644,2.2429,164.96,164.95,45.0]
[1717395826127,2.2429,164.96,164.95,45.17]
[1717395826529,2.2429,164.96,164.95,45.0]
[1717395827425,2.2429,164.96,164.94,0.894568]
[1717395827426,2.2431,164.95,164.94,0.894568]
[1717395829370,4.73798788,165.01,164.94,1.234568]
[1717395829654,2.2428,164.97,164.95,6.6927]